fUSD/lending_fUSD_20251023
["ID","MTS","AMOUNT","RATE_DAILY","PERIOD"]
[392129038,1761191434182,-502.49188164,0.00042931,30]
[392129039,1761191434193,-971.55555078,0.00042982,30]
[392129040,1761191434205,-189.0,0.00043,90]
[392129041,1761191434216,-1000.0,0.00043,120]
[392129042,1761191434226,-189.0,0.00043014,90]
[392129043,1761191434236,-166.66,0.00043101,2]
[392129044,1761191434247,-257.52416834,0.00043218,14]
[392129045,1761191434257,-31700.28822314,0.0004356,2]
[392129046,1761191434267,-1231.56264,0.0004356,19]
[392129047,1761191434277,-676.41,0.00043599,2]
[392129048,1761191434287,-371.0,0.0004365,30]
[392129049,1761191434298,-168.0,0.00043773,2]
[392129050,1761191434309,-803.42800829,0.00043788,2]
[392129051,1761191434320,-6456.25910832,0.00043797,15]
[392129052,1761191434331,-169.22769173,0.00043799,28]
[392129053,1761191434341,-1591.84294262,0.000438,16]
[392129054,1761191434351,-162.77487531,0.000438,15]
[392129055,1761191434362,-500.0,0.0004386,10]
[392129056,1761191434372,-500.0,0.00043862,10]
[392129057,1761191434382,-549.11262805,0.00043862,10]
[392129058,1761191434392,-502.70985098,0.00043862,10]
[392129059,1761191434402,-500.0,0.00043862,10]
[392129060,1761191434413,-500.0,0.00043862,10]
[392129061,1761191434427,-500.16327943,0.00043862,10]
[392129062,1761191434438,-501.55652216,0.00043879,10]
[392129063,1761191434449,-500.0,0.00043879,10]
[392129064,1761191434460,-317.14697686,0.00043879,10]
[392129065,1761191434471,-500.0,0.00043879,10]
[392129066,1761191434482,-340.61693921,0.00043879,10]
[392129067,1761191434493,-500.0,0.00043879,10]
[392129068,1761191434504,-500.0,0.00043879,10]
[392129069,1761191434514,-500.0,0.00043879,10]
[392129070,1761191434524,-516.92665286,0.00043879,10]
[392129071,1761191434535,-500.0,0.00043879,10]
[392129072,1761191434546,-500.0,0.00043879,10]
[392129073,1761191434556,-500.0,0.00043879,10]
[392129074,1761191434567,-415.31955449,0.00043879,10]
[392129075,1761191434579,-500.0,0.00043879,10]
[392129076,1761191434589,-502.484734,0.00043879,10]
[392129077,1761191434599,-500.0,0.00043879,10]
[392129078,1761191434610,-196.12,0.00043888,2]
[392129079,1761191434621,-163.01,0.00043889,2]
[392129080,1761191434631,-532.0524609,0.00043897,120]
[392129081,1761191434643,-500.0,0.00043897,120]
[392129082,1761191434654,-500.0,0.00043897,120]
[392129083,1761191434664,-612.52678863,0.00043897,30]
[392129084,1761191434675,-500.0,0.00043897,120]
[392129085,1761191434686,-500.0,0.00043897,120]
[392129086,1761191434696,-570.21736595,0.00043897,120]
[392129087,1761191434707,-500.0,0.00043897,120]
[392129088,1761191434718,-572.97313493,0.00043897,120]
[392129089,1761191434728,-500.0,0.00043897,120]
[392129090,1761191434740,-500.0,0.00043897,120]
[392129091,1761191434751,-618.24961269,0.00043897,120]
[392129092,1761191434761,-524.67250567,0.00043897,30]
[392129093,1761191434772,-500.0,0.00043897,120]
[392129094,1761191434783,-598.97,0.00043897,120]
[392129095,1761191434794,-500.0,0.00043897,120]
[392129096,1761191434805,-500.0,0.00043897,120]
[392129097,1761191434815,-500.0,0.00043897,120]
[392129098,1761191434826,-511.33861294,0.00043897,120]
[392129099,1761191434837,-500.0,0.00043897,120]
[392129100,1761191434848,-500.0,0.00043897,120]
[392129101,1761191434859,-500.0,0.00043897,120]
[392129102,1761191434870,-500.0,0.00043897,120]
[392129103,1761191434882,-500.0,0.00043897,120]
[392129104,1761191434892,-226.06213526,0.00043897,120]
[392129105,1761191434903,-507.81422809,0.00043897,120]
[392129106,1761191434914,-500.0,0.00043897,120]
[392129107,1761191434925,-500.0,0.00043897,120]
[392129108,1761191434937,-500.0,0.00043897,120]
[392129109,1761191434948,-505.43372094,0.00043897,120]
[392129110,1761191434962,-503.47326976,0.00043897,120]
[392129111,1761191434975,-500.0,0.00043897,7]
[392129112,1761191434988,-500.0,0.00043897,120]
[392129113,1761191435000,-403.57,0.00043897,120]
[392129114,1761191435013,-531.70998207,0.00043897,120]
[392129115,1761191435025,-525.11839103,0.00043897,120]
[392129116,1761191435037,-500.0,0.00043897,120]
[392129117,1761191435049,-500.0,0.00043897,120]
[392129118,1761191435061,-368.99,0.00043897,120]
[392129119,1761191435073,-249.46,0.00043897,120]
[392129120,1761191435086,-500.0,0.00043897,120]
[392129121,1761191435097,-500.0,0.00043897,120]
[392129122,1761191435108,-581.93005269,0.00043897,120]
[392129123,1761191435120,-291.42,0.00043897,120]
[392129124,1761191435130,-500.0,0.00043897,120]
[392129125,1761191435140,-502.66991092,0.00043897,30]
[392129126,1761191435151,-505.04707078,0.00043897,2]
[392129127,1761191435162,-500.0,0.00043897,120]
[392129128,1761191435172,-500.0,0.00043897,120]
[392129129,1761191435182,-500.0,0.00043897,120]
[392129130,1761191435193,-405.21877175,0.00043897,120]
[392129131,1761191435205,-500.0,0.00043897,30]
[392129132,1761191435215,-291.21221558,0.00043897,2]
[392129133,1761191435227,-500.0,0.00043897,120]
[392129134,1761191435237,-500.0,0.00043897,120]
[392129135,1761191435248,-201.38,0.00043897,120]
[392129136,1761191435258,-500.0,0.00043897,120]
[392129137,1761191435269,-500.0,0.00043897,120]
[392129138,1761191435280,-521.54,0.00043897,120]
[392129139,1761191435292,-500.0,0.00043897,120]
[392129140,1761191435303,-500.0,0.00043897,120]
[392129141,1761191435314,-500.0,0.00043897,120]
[392129142,1761191435326,-585.52788318,0.00043897,120]
[392129143,1761191435336,-500.0,0.00043897,120]
[392129144,1761191435347,-500.0,0.00043897,120]
[392129145,1761191435358,-908.34,0.00043897,120]
[392129146,1761191435368,-574.29194325,0.00043897,120]
[392129147,1761191435379,-500.0,0.00043897,120]
[392129148,1761191435390,-500.0,0.00043897,120]
[392129149,1761191435401,-311.39952997,0.00043897,120]
[392129150,1761191435412,-500.0,0.00043897,120]
[392129151,1761191435426,-500.0,0.00043897,120]
[392129152,1761191435437,-500.0,0.00043897,120]
[392129153,1761191435449,-596.9909448,0.00043897,120]
[392129154,1761191435460,-500.0,0.00043897,120]
[392129155,1761191435473,-502.35119999,0.00043897,120]
[392129156,1761191435485,-508.78169519,0.00043897,120]
[392129157,1761191435496,-500.0,0.00043897,120]
[392129158,1761191435506,-500.0,0.00043897,60]
[392129159,1761191435519,-500.0,0.00043897,120]
[392129160,1761191435531,-500.0,0.00043897,120]
[392129161,1761191435542,-500.0,0.00043897,120]
[392129162,1761191435553,-510.81827519,0.00043897,120]
[392129163,1761191435564,-500.0,0.00043897,120]
[392129164,1761191435575,-409.68934602,0.00043897,120]
[392129165,1761191435587,-500.0,0.00043897,120]
[392129166,1761191435598,-403.67,0.00043897,120]
[392129167,1761191435608,-547.92641398,0.00043897,120]
[392129168,1761191435622,-104127.98162876,0.00043898,30]
[392129169,1761191435632,-481.37037332,0.00043899,18]
[392129170,1761191435643,-155555.0,0.00043899,60]
[392129171,1761191435654,-715.154,0.000439,2]
[392129172,1761191435664,-161.66013364,0.000439,18]
[392129173,1761191435674,-382.60832899,0.000439,13]
[392129174,1761191435685,-501.87968708,0.00043909,10]
[392129175,1761191435695,-501.19585503,0.00043909,10]
[392129176,1761191435706,-500.0,0.00043909,10]
[392129177,1761191435716,-501.42653021,0.00043909,10]
[392129178,1761191435727,-6456.25910824,0.0004392,15]
[392129179,1761191435737,-503.05556562,0.00043956,2]
[392129180,1761191435748,-500.0,0.00043985,120]
[392129181,1761191435758,-232.38050842,0.00043985,120]
[392129182,1761191435768,-360.92490956,0.00043985,120]
[392129183,1761191435778,-500.0,0.00043985,120]
[392129184,1761191435788,-514.46260514,0.00043985,120]
[392129185,1761191435799,-500.0,0.00043985,120]
[392129186,1761191435810,-600.29999602,0.00043985,120]
[392129187,1761191435820,-636.05311234,0.00043985,120]
[392129188,1761191435832,-500.0,0.00043985,120]
[392129189,1761191435842,-500.0,0.00043985,120]
[392129190,1761191435853,-500.0,0.00043985,120]
[392129191,1761191435863,-500.0,0.00043985,120]
[392129192,1761191435874,-532.62,0.00043985,120]
[392129193,1761191435885,-608.76149122,0.00043985,120]
[392129194,1761191435897,-528.78299758,0.00043985,120]
[392129195,1761191435910,-500.0,0.00043985,120]
[392129196,1761191435920,-644.66,0.00043985,120]
[392129197,1761191435931,-500.0,0.00043985,120]
[392129198,1761191435940,-908.34,0.00043985,120]
[392129199,1761191435950,-500.0,0.00043985,120]
[392129200,1761191435960,-500.0,0.00043985,120]
[392129201,1761191435970,-500.0,0.00043985,120]
[392129202,1761191435981,-257.65,0.00043985,120]
[392129203,1761191435991,-500.0,0.00043985,120]
[392129204,1761191436002,-500.0,0.00043985,120]
[392129205,1761191436013,-976.3445394,0.00043986,2]
[392129206,1761191436023,-70022.3236462,0.00043986,2]
[392129207,1761191436033,-7861.9275137,0.00043986,2]
[392129208,1761191436044,-250000.0,0.0004399,120]
[392129209,1761191436054,-151.0,0.0004399,120]
[392129210,1761191436065,-151.0,0.0004399,120]
[392129211,1761191436076,-151.0,0.0004399,120]
[392129212,1761191436087,-151.0,0.0004399,120]
[392129213,1761191436096,-500.0,0.00043996,120]
[392129214,1761191436105,-500.0,0.00043996,120]
[392129215,1761191436114,-500.0,0.00043997,120]
[392129216,1761191436123,-500.0,0.00043997,120]
[392129217,1761191436131,-908.34,0.00043997,120]
[392129218,1761191436139,-151.0,0.00043998,120]
[392129219,1761191436149,-204.627202,0.00043998,120]
[392129220,1761191436158,-267.120822,0.00043998,120]
[392129221,1761191436170,-151.0,0.00043998,120]
[392129222,1761191436180,-151.0,0.00043998,120]
[392129223,1761191436191,-152.197223,0.00043998,120]
[392129224,1761191436202,-151.0,0.00043998,120]
[392129225,1761191436213,-159.529855,0.00043998,120]
[392129226,1761191436224,-157.805072,0.00043998,120]
[392129227,1761191436234,-151.0,0.00043998,120]
[392129228,1761191436244,-154.915219,0.00043998,120]
[392129229,1761191436256,-157.902369,0.00043998,30]
[392129230,1761191436266,-151.000004,0.00043998,120]
[392129231,1761191436277,-154.924824,0.00043998,120]
[392129232,1761191436288,-151.0,0.00043998,120]
[392129233,1761191436300,-233.53419467,0.00043998,120]
[392129234,1761191436311,-244.974902,0.00043998,120]
[392129235,1761191436322,-244.974902,0.00043998,120]
[392129236,1761191436332,-267.321033,0.00043998,120]
[392129237,1761191436342,-267.321033,0.00043998,120]
[392129238,1761191436353,-267.321033,0.00043998,120]
[392129239,1761191436362,-267.321033,0.00043998,120]
[392129240,1761191436373,-154.077154,0.00043998,120]
[392129241,1761191436383,-151.0,0.00043998,120]
[392129242,1761191436394,-151.0,0.00043998,120]
[392129243,1761191436404,-151.0,0.00043998,120]
[392129244,1761191436414,-151.0,0.00043998,120]
[392129245,1761191436550,-161.445298,0.00043998,120]
[392129246,1761191436562,-269.236582,0.00043998,120]
[392129247,1761191436574,-151.0,0.00043998,120]
[392129248,1761191436586,-151.0,0.00043998,120]
[392129249,1761191436596,-151.0,0.00043998,120]
[392129250,1761191436606,-151.0,0.00043998,120]
[392129251,1761191436615,-226.393837,0.00043998,120]
[392129252,1761191436625,-151.0,0.00043998,120]
[392129253,1761191436635,-159.06668867,0.00043998,120]
[392129254,1761191436644,-200.0,0.00043998,120]
[392129255,1761191436654,-207.4,0.00043998,120]
[392129256,1761191436664,-151.0,0.00043998,120]
[392129257,1761191436674,-158.466227,0.00043998,120]
[392129258,1761191436684,-218.69614647,0.00043998,120]
[392129259,1761191436693,-162.679745,0.00043998,120]
[392129260,1761191436703,-223.048382,0.00043998,30]
[392129261,1761191436713,-223.048382,0.00043998,30]
[392129262,1761191436723,-223.048382,0.00043998,30]
[392129263,1761191436733,-223.048382,0.00043998,30]
[392129264,1761191436743,-223.048382,0.00043998,30]
[392129265,1761191436752,-223.048382,0.00043998,30]
[392129266,1761191436761,-223.048382,0.00043998,30]
[392129267,1761191436771,-223.048382,0.00043998,30]
[392129268,1761191436781,-151.0,0.00043998,120]
[392129269,1761191436791,-298.76383,0.00043998,120]
[392129270,1761191436801,-151.0,0.00043998,120]
[392129271,1761191436811,-151.0,0.00043998,120]
[392129272,1761191436820,-296.94724852,0.00043998,120]
[392129273,1761191436830,-151.0,0.00043998,120]
[392129274,1761191436840,-500.0,0.00043998,120]
[392129275,1761191436849,-200.0,0.00043998,30]
[392129276,1761191436861,-151.0,0.00043998,120]
[392129277,1761191436870,-207.4,0.00043998,30]
[392129278,1761191436880,-500.0,0.00043998,120]
[392129279,1761191436890,-151.0,0.00043998,120]
[392129280,1761191436899,-215.0738,0.00043998,30]
[392129281,1761191436909,-500.0,0.00043998,120]
[392129282,1761191436919,-151.0,0.00043998,120]
[392129283,1761191436928,-223.0315306,0.00043998,30]
[392129284,1761191436938,-500.0,0.00043998,120]
[392129285,1761191436947,-159.99288492,0.00043998,120]
[392129286,1761191436957,-231.28369723,0.00043998,30]
[392129287,1761191436967,-500.0,0.00043998,120]
[392129288,1761191436978,-500.0,0.00043998,120]
[392129289,1761191436988,-1000.0,0.00043998,120]
[392129290,1761191436997,-500.0,0.00043998,120]
[392129291,1761191437007,-239.84119403,0.00043998,30]
[392129292,1761191437017,-500.0,0.00043998,120]
[392129293,1761191437027,-500.0,0.00043998,120]
[392129294,1761191437037,-1000.0,0.00043998,120]
[392129295,1761191437046,-651.53743762,0.00043998,120]
[392129296,1761191437056,-248.71531821,0.00043998,30]
[392129297,1761191437066,-500.0,0.00043998,120]
[392129298,1761191437076,-500.0,0.00043998,120]
[392129299,1761191437086,-1000.0,0.00043998,120]
[392129300,1761191437095,-257.91778498,0.00043998,30]
[392129301,1761191437105,-500.0,0.00043998,120]
[392129302,1761191437115,-1000.0,0.00043998,120]
[392129303,1761191437125,-267.46074303,0.00043998,30]
[392129304,1761191437135,-500.0,0.00043998,120]
[392129305,1761191437145,-1000.0,0.00043998,120]
[392129306,1761191437154,-277.35679052,0.00043998,30]
[392129307,1761191437163,-263.5775437,0.00043998,120]
[392129308,1761191437175,-1000.0,0.00043998,120]
[392129309,1761191437184,-159.04533644,0.00043998,120]
[392129310,1761191437194,-500.0,0.00043998,120]
[392129311,1761191437203,-287.61899177,0.00043998,30]
[392129312,1761191437212,-1000.0,0.00043998,120]
[392129313,1761191437221,-500.0,0.00043998,120]
[392129314,1761191437231,-1000.0,0.00043998,120]
[392129315,1761191437240,-298.26089446,0.00043998,30]
[392129316,1761191437249,-500.0,0.00043998,120]
[392129317,1761191437259,-520.0,0.00043998,120]
[392129318,1761191437268,-500.0,0.00043998,120]
[392129319,1761191437277,-1000.0,0.00043998,120]
[392129320,1761191437287,-309.29654756,0.00043998,30]
[392129321,1761191437296,-500.0,0.00043998,120]
[392129322,1761191437305,-539.24,0.00043998,120]
[392129323,1761191437315,-500.0,0.00043998,120]
[392129324,1761191437325,-1000.0,0.00043998,120]
[392129325,1761191437335,-320.74051982,0.00043998,30]
[392129326,1761191437344,-500.0,0.00043998,120]
[392129327,1761191437353,-559.19188,0.00043998,120]
[392129328,1761191437363,-500.0,0.00043998,120]
[392129329,1761191437372,-1000.0,0.00043998,120]
[392129330,1761191437382,-500.0,0.00043998,120]
[392129331,1761191437391,-332.60791905,0.00043998,30]
[392129332,1761191437400,-579.88197956,0.00043998,120]
[392129333,1761191437409,-500.0,0.00043998,120]
[392129334,1761191437421,-344.91441206,0.00043998,30]
[392129335,1761191437432,-500.0,0.00043998,120]
[392129336,1761191437442,-1000.0,0.00043998,120]
[392129337,1761191437454,-601.3376128,0.00043998,120]
[392129338,1761191437464,-500.0,0.00043998,120]
[392129339,1761191437473,-357.6762453,0.00043998,30]
[392129340,1761191437484,-500.0,0.00043998,120]
[392129341,1761191437495,-1000.0,0.00043998,120]
[392129342,1761191437505,-430.02234095,0.00043998,120]
[392129343,1761191437516,-500.0,0.00043998,120]
[392129344,1761191437527,-380.31576864,0.00043998,30]
[392129345,1761191437536,-1000.0,0.00043998,120]
[392129346,1761191437550,-500.0,0.00043998,120]
[392129347,1761191437561,-500.0,0.00043998,120]
[392129348,1761191437573,-1000.0,0.00043998,120]
[392129349,1761191437583,-500.0,0.00043998,120]
[392129350,1761191437593,-500.0,0.00043998,120]
[392129351,1761191437602,-1000.0,0.00043998,120]
[392129352,1761191437612,-500.0,0.00043998,120]
[392129353,1761191437622,-500.0,0.00043998,120]
[392129354,1761191437632,-152.21356696,0.00043998,120]
[392129355,1761191437643,-1113.19260932,0.00043998,120]
[392129356,1761191437653,-500.0,0.00043998,120]
[392129357,1761191437662,-500.0,0.00043998,120]
[392129358,1761191437671,-250.0,0.00043998,120]
[392129359,1761191437681,-500.0,0.00043998,120]
[392129360,1761191437691,-69.65000218,0.00043998,120]
[392129361,1761191437744,-430.34999782,0.00043998,120]
[392129362,1761191437753,-69.65000218,0.00043998,120]
[392129363,1761191437763,-180.34999782,0.00043998,120]
[392129364,1761191437773,-500.0,0.00043998,120]
[392129365,1761191437782,-435.15000218,0.00043998,120]
[392129366,1761191437887,-64.84999782,0.00043998,120]
[392129367,1761191437897,-250.0,0.00043998,120]
[392129368,1761191437907,-325.27958509,0.00043998,120]
[392129369,1761191437922,-174.72041491,0.00043998,120]
[392129370,1761191437932,-500.0,0.00043998,120]
[392129371,1761191437941,-250.0,0.00043998,120]
[392129372,1761191437952,-500.0,0.00043998,120]
[392129373,1761191437962,-75.27958509,0.00043998,120]
[392129374,1761191438691,-500.0,0.00033843,7]
[392129375,1761191438700,-500.0,0.00033843,7]
[392129376,1761191438710,-340.51383126,0.00033843,7]
[392129377,1761191438720,-500.0,0.00039726,15]
[392129378,1761191438729,-500.0,0.00039726,15]
[392129379,1761191438739,-500.0,0.00039726,15]
[392129380,1761191438749,-500.0,0.00039726,15]
[392129381,1761191438759,-500.0,0.00039726,15]
[392129382,1761191438768,-490.39900007,0.00039726,15]
[392129383,1761191438835,-9.60099993,0.00039726,15]
[392129385,1761191438845,-399.93900007,0.00039726,15]
[392129388,1761191438856,-100.06099993,0.00039726,15]
[392129389,1761191438866,-500.0,0.00039726,15]
[392129391,1761191438876,-500.0,0.00039726,15]
[392129393,1761191438887,-500.0,0.00039726,15]
[392129394,1761191438897,-500.0,0.00039726,15]
[392129395,1761191438907,-198.91747069,0.00039726,15]
[392129396,1761191438919,-301.08252931,0.00039726,15]
[392129397,1761191438929,-523.08790504,0.00039726,15]
[392129398,1761191438962,-500.0,0.00039726,15]
[392129399,1761191438972,-500.0,0.00039726,15]
[392129400,1761191438983,-151.0,0.0004399,120]
[392129401,1761191438993,-424.72041491,0.00043998,120]
[392129402,1761191439003,-250.0,0.00043998,120]
[392129403,1761191439013,-500.0,0.00043998,120]
[392129404,1761191439023,-301.10502822,0.00043998,120]
[392129405,1761191439033,-483.83065709,0.00043998,120]
[392129406,1761191439057,-16.16934291,0.00043998,120]
[392129407,1761191439066,-250.0,0.00043998,120]
[392129408,1761191439076,-500.0,0.00043998,120]
[392129409,1761191439086,-500.0,0.00043998,120]
[392129410,1761191439096,-199.83065709,0.00043998,120]
[392129413,1761191440279,-476.23156132,0.00043897,120]
[392129414,1761191440289,-151.0,0.0004399,120]
[392129415,1761191440300,-50.16934291,0.00043998,120]
[392129416,1761191440310,-500.0,0.00043998,120]
[392129417,1761191440319,-500.0,0.00043998,120]
[392129418,1761191440329,-250.0,0.00043998,120]
[392129419,1761191440339,-500.0,0.00043998,120]
[392129420,1761191440348,-500.0,0.00043998,120]
[392129421,1761191440358,-500.0,0.00043998,120]
[392129422,1761191440367,-500.0,0.00043998,120]
[392129423,1761191440376,-500.0,0.00043998,120]
[392129424,1761191440388,-600.0,0.00043998,120]
[392129425,1761191440400,-500.0,0.00043998,120]
[392129426,1761191440412,-500.0,0.00043998,120]
[392129427,1761191440425,-600.0,0.00043998,120]
[392129428,1761191440436,-500.0,0.00043998,120]
[392129429,1761191440445,-500.0,0.00043998,120]
[392129430,1761191440454,-600.0,0.00043998,120]
[392129431,1761191440464,-500.0,0.00043998,120]
[392129432,1761191440473,-600.0,0.00043998,120]
[392129433,1761191440483,-600.0,0.00043998,120]
[392129434,1761191440492,-500.0,0.00043998,120]
[392129435,1761191440502,-600.0,0.00043998,120]
[392129436,1761191440511,-500.0,0.00043998,120]
[392129437,1761191440520,-600.0,0.00043998,120]
[392129438,1761191440528,-500.0,0.00043998,120]
[392129439,1761191440537,-250.0,0.00043998,120]
[392129440,1761191440546,-600.0,0.00043998,120]
[392129441,1761191440556,-500.0,0.00043998,120]
[392129442,1761191440565,-250.0,0.00043998,120]
[392129443,1761191440574,-600.0,0.00043998,120]
[392129444,1761191440584,-250.0,0.00043998,120]
[392129445,1761191440593,-500.0,0.00043998,120]
[392129446,1761191440603,-600.0,0.00043998,120]
[392129447,1761191440612,-250.0,0.00043998,120]
[392129448,1761191440620,-286.59747576,0.00043998,120]
[392129449,1761191440629,-151.0,0.00043998,120]
[392129450,1761191440638,-250.0,0.00043998,120]
[392129451,1761191440647,-250.0,0.00043998,120]
[392129452,1761191440656,-250.0,0.00043998,120]
[392129453,1761191440666,-250.0,0.00043998,120]
[392129454,1761191440675,-151.0,0.00043998,120]
[392129455,1761191440684,-250.0,0.00043998,120]
[392129456,1761191440694,-250.0,0.00043998,120]
[392129457,1761191440704,-250.0,0.00043998,120]
[392129458,1761191440713,-250.0,0.00043998,120]
[392129459,1761191440723,-269.25388954,0.00043998,120]
[392129460,1761191440735,-250.0,0.00043998,120]
[392129461,1761191440743,-250.0,0.00043998,120]
[392129462,1761191440751,-250.0,0.00043998,120]
[392129463,1761191440761,-250.0,0.00043998,120]
[392129465,1761191440781,-250.0,0.00043998,120]
[392129467,1761191440791,-250.0,0.00043998,120]
[392129469,1761191440800,-154.18685964,0.00043998,120]
[392129470,1761191440809,-6888.0,0.00043998,120]
[392129471,1761191440818,-7142.856,0.00043998,120]
[392129472,1761191440828,-151.0,0.00043998,120]
[392129473,1761191440838,-300.0,0.00043998,120]
[392129474,1761191440847,-311.1,0.00043998,120]
[392129475,1761191440856,-7681.20591386,0.00043998,120]
[392129476,1761191440865,-322.6107,0.00043998,120]
[392129477,1761191440874,-7965.41053268,0.00043998,120]
[392129478,1761191440883,-334.5472959,0.00043998,120]
[392129479,1761191440893,-8260.13072239,0.00043998,120]
[392129480,1761191440902,-346.92554585,0.00043998,120]
[392129481,1761191440911,-8565.75555911,0.00043998,120]
[392129482,1761191440921,-151.0,0.00043998,120]
[392129483,1761191440930,-359.76179104,0.00043998,120]
[392129484,1761191440940,-8882.6885148,0.00043998,120]
[392129485,1761191440950,-293.33801941,0.00043998,120]
[392129486,1761191440960,-9211.34798985,0.00043998,120]
[392129487,1761191440971,-9552.16786547,0.00043998,120]
[392129488,1761191440980,-9905.5980765,0.00043998,120]
[392129489,1761191440990,-10272.10520533,0.00043998,120]
[392129490,1761191440999,-10652.17309792,0.00043998,120]
[392129491,1761191441009,-11046.30350255,0.00043998,120]
[392129492,1761191441018,-4288.95570465,0.00043998,120]
[392129493,1761191441028,-151.0,0.00043998,120]
[392129494,1761191441038,-151.0,0.00043998,120]
[392129495,1761191441049,-500.0,0.00043999,120]
[392129496,1761191441059,-500.0,0.00043999,120]
[392129497,1761191441069,-500.0,0.00043999,30]
[392129498,1761191441078,-500.0,0.00043999,120]
[392129499,1761191441088,-510.07956934,0.00043999,120]
[392129500,1761191441097,-500.0,0.00043999,120]
[392129501,1761191441107,-446.91449853,0.00043999,120]
[392129502,1761191441116,-500.0,0.00043999,120]
[392129503,1761191441125,-505.54941185,0.00043999,120]
[392129504,1761191441134,-500.0,0.00043999,120]
[392129505,1761191441144,-500.0,0.00043999,120]
[392129506,1761191441154,-512.26131567,0.00043999,120]
[392129507,1761191441164,-500.0,0.00043999,120]
[392129508,1761191441174,-500.0,0.00043999,120]
[392129509,1761191441184,-500.0,0.00043999,120]
[392129510,1761191441193,-500.0,0.00043999,120]
[392129511,1761191441202,-500.0,0.00043999,120]
[392129512,1761191441213,-500.0,0.00043999,120]
[392129513,1761191441223,-500.0,0.00043999,120]
[392129514,1761191441235,-500.0,0.00043999,120]
[392129515,1761191441247,-500.0,0.00043999,120]
[392129516,1761191441257,-500.0,0.00043999,120]
[392129517,1761191441266,-159.77224546,0.00043999,120]
[392129518,1761191441276,-500.0,0.00043999,120]
[392129519,1761191441287,-546.84,0.00043999,120]
[392129520,1761191441297,-503.08910375,0.00043999,120]
[392129521,1761191441309,-500.0,0.00043999,120]
[392129522,1761191441319,-500.0,0.00043999,120]
[392129523,1761191441329,-500.0,0.00043999,120]
[392129524,1761191441338,-174.96184022,0.00043999,120]
[392129525,1761191441347,-500.0,0.00043999,120]
[392129526,1761191441358,-500.0,0.00043999,120]
[392129527,1761191441370,-500.0,0.00043999,12]
[392129528,1761191441381,-500.0,0.00043999,12]
[392129529,1761191441390,-322.55,0.00043999,12]
[392129530,1761191441401,-211.97858887,0.00043999,120]
[392129531,1761191441410,-500.0,0.00043999,120]
[392129532,1761191441421,-186.23337483,0.00043999,120]
[392129533,1761191441433,-527.98060799,0.00043999,120]
[392129534,1761191441442,-500.0,0.00043999,120]
[392129535,1761191441452,-500.0,0.00043999,120]
[392129536,1761191441463,-300.0,0.00043999,120]
[392129537,1761191441473,-500.0,0.00043999,120]
[392129538,1761191441484,-500.0,0.00043999,120]
[392129539,1761191441495,-500.0,0.00043999,120]
[392129540,1761191441508,-500.0,0.00043999,120]
[392129541,1761191441518,-500.0,0.00043999,120]
[392129542,1761191441528,-500.0,0.00043999,120]
[392129543,1761191441537,-500.0,0.00043999,120]
[392129544,1761191441547,-500.0,0.00043999,120]
[392129545,1761191441556,-341.89431985,0.00043999,120]
[392129546,1761191441568,-362.54807483,0.00043999,120]
[392129547,1761191441583,-285.58869584,0.00043999,120]